bitfinex-derivatives/quotes_SOLF0:USTF0_20240925
["timestamp","ask_amount","ask_price","bid_price","bid_amount"]
[1727292755318,3.326,150.34,150.32,3.3264]
[1727292756523,6.71038466,150.35,150.31,10.24]
[1727292757122,3.326,150.34,150.32,3.3262]
[1727292758124,6.71038466,150.35,150.32,3.3262]
[1727292758327,3.3258,150.35,150.32,3.3262]
[1727292758525,3.3258,150.35,150.33,3.3261]
[1727292758820,6.64404432,150.35,150.33,3.3261]
[1727292761522,10.24,150.34,150.26,7.9186]
[1727292761734,10.24,150.34,150.29,10.24]
[1727292761921,3.3262,150.33,150.3,3.3266]
[1727292762324,6.72698546,150.33,150.3,3.3266]
[1727292762827,6.72698546,150.33,150.31,3.3266]
[1727292763133,3.3264,150.32,150.26,1.2633]
[1727292763329,3.3264,150.32,150.3,3.3266]
[1727292763627,3.3263,150.33,150.3,3.3266]
[1727292763828,6.69313751,150.33,150.3,3.3266]
[1727292764224,6.69313751,150.33,150.31,3.3265]
[1727292764426,3.3264,150.32,150.28,10.24]
[1727292765127,3.3264,150.32,150.3,3.3267]
[1727292765322,6.68125588,150.32,150.3,3.3267]
[1727292765620,3.3264,150.32,150.3,3.3267]
[1727292766028,6.57475252,150.32,150.3,3.3267]
[1727292766635,3.24835252,150.32,150.31,3.3266]
[1727292766934,3.3262,150.33,150.31,3.3266]
[1727292767320,6.7289824,150.33,150.31,3.3266]
[1727292767626,3.326,150.34,150.31,13.5666]
[1727292767830,3.37049856,150.33,150.31,13.5666]
[1727292769037,3.3258,150.35,150.32,3.3264]
[1727292770234,6.73080599,150.35,150.32,3.3264]
[1727292775028,16.97080599,150.35,150.32,3.3264]
[1727292776537,16.97080599,150.35,150.31,3.3265]
[1727292779135,10.24,150.32,150.26,1.2633]
[1727292779343,10.24,150.32,150.26,11.5033]
[1727292779541,10.24,150.31,150.26,11.5033]
[1727292779743,13.5666,150.31,150.28,3.3271]
[1727292780442,13.5666,150.31,150.24,79.88]
[1727292780443,10.24,150.29,150.24,79.88]
[1727292780643,10.24,150.27,150.24,79.88]
[1727292780947,10.24,150.26,150.24,79.88]
[1727292781134,10.24,150.26,150.17,2.6541]
[1727292781334,10.24,150.26,150.21,10.24]
[1727292781749,3.40290999,150.25,150.21,10.24]
[1727292781949,3.40290999,150.25,150.23,3.3283]
[1727292783037,6.6523,150.34,150.24,10.24]
[1727292783244,10.24,150.29,150.24,10.24]
[1727292783444,13.65236014,150.29,150.24,10.24]
[1727292783946,3.3273,150.28,150.25,3.3278]
[1727292784247,13.5673,150.28,150.25,3.3278]
[1727292784745,10.24,150.28,150.26,3.3277]
[1727292785154,3.41236014,150.29,150.26,3.3277]
[1727292785352,13.5669,150.3,150.26,3.3277]
[1727292785854,16.96394315,150.3,150.26,3.3277]
[1727292786051,13.5671,150.29,150.25,3.3278]
[1727292786746,3.37373468,150.28,150.25,3.3278]
[1727292788851,10.24,150.27,150.24,3.3281]
[1727292789055,13.60674214,150.27,150.24,3.3281]
[1727292789956,13.5671,150.29,150.25,3.3277]
[1727292790160,13.5671,150.29,150.24,10.24]
[1727292790560,3.40037293,150.28,150.24,10.24]
[1727292790750,3.40037293,150.28,150.25,3.3278]
[1727292790950,6.72767293,150.28,150.25,3.3278]
[1727292792255,6.72767293,150.28,150.17,9.3135]
[1727292792256,1.2769,150.36,150.26,10.24]
[1727292792661,10.24,150.31,150.26,10.24]
[1727292792967,13.57166866,150.31,150.26,10.24]
[1727292793169,16.89846866,150.31,150.27,3.3273]
[1727292793463,16.89846866,150.31,150.26,10.24]
[1727292793464,13.57166866,150.31,150.26,10.24]
[1727292793666,13.57166866,150.31,150.26,11.6134]
[1727292793870,16.89826866,150.31,150.28,3.3271]
[1727292794771,13.57166866,150.31,150.28,3.3271]
[1727292795469,16.89826866,150.31,150.28,3.3271]
[1727292796458,16.89826866,150.31,150.26,1.3734]
[1727292796459,3.3271,150.29,150.26,1.3734]
[1727292796663,10.24,150.28,150.26,1.3734]
[1727292797373,13.49398715,150.28,150.26,4.701]
[1727292799785,3.25398715,150.28,150.26,4.701]
[1727292800379,3.3269,150.3,150.26,11.6134]
[1727292801075,3.3271,150.29,150.27,3.3274]
[1727292801284,7.928,150.36,150.26,1.3734]
[1727292801481,10.24,150.28,150.25,1.3417]
[1727292802077,10.24,150.28,150.25,4.6696]
[1727292802078,3.3275,150.27,150.25,4.6696]
[1727292804680,3.34864828,150.29,150.25,1.3417]
[1727292804986,25.57322468,150.35,150.27,10.24]
[1727292805281,25.57322468,150.35,150.28,3.3272]
[1727292805282,3.3267,150.31,150.28,3.3272]
[1727292805477,3.37717253,150.31,150.28,3.3272]
[1727292805677,3.3266,150.31,150.28,3.3272]
[1727292805886,3.38660274,150.3,150.27,13.5674]
[1727292806087,10.24,150.32,150.27,13.5674]
[1727292806779,3.3267,150.31,150.27,13.5674]
[1727292808975,3.3268,150.3,150.27,13.5674]
[1727292813588,3.3268,150.3,150.28,3.3272]
[1727292814895,3.3267,150.31,150.28,3.3272]
[1727292815078,3.3267,150.31,150.28,13.5672]
[1727292815283,13.51839925,150.32,150.29,3.327]
[1727292815491,3.27839925,150.32,150.3,10.24]
[1727292815781,10.24,150.37,150.32,3.3262]
[1727292815986,10.24,150.37,150.33,10.24]
[1727292816384,3.3253,150.37,150.33,13.5659]
[1727292816592,3.3253,150.37,150.33,10.24]
[1727292816890,10.24,150.4,150.36,3.3253]
[1727292817081,10.24,150.4,150.36,10.24]
[1727292817291,3.3247,150.4,150.36,10.24]
[1727292817687,3.27208005,150.41,150.37,10.24]
[1727292818001,12.24945288,150.46,150.39,10.24]
[1727292818180,10.24,150.46,150.4,10.24]
[1727292818384,3.3238,150.44,150.4,10.24]
[1727292820494,3.324,150.43,150.4,10.24]
[1727292821699,13.5638,150.44,150.4,10.24]
[1727292822293,3.3238,150.44,150.4,10.24]
[1727292823998,10.24,150.44,150.38,3.325]
[1727292824391,10.24,150.44,150.37,10.24]
[1727292825495,3.3242,150.42,150.38,3.3249]
[1727292827593,10.24,150.4,150.35,3.3255]
[1727292828489,3.325,150.38,150.35,3.3255]
[1727292828897,3.2920825,150.39,150.35,3.3255]
[1727292829500,6.6169825,150.39,150.35,3.3255]
[1727292830701,3.3251,150.38,150.34,14.9567]
[1727292831298,3.3251,150.38,150.35,3.3257]
[1727292838799,3.2920825,150.39,150.34,11.6309]
[1727292839002,10.24,150.4,150.34,11.6309]
[1727292839606,13.57000598,150.4,150.34,11.6309]
[1727292839803,3.33000598,150.4,150.36,10.24]
[1727292840003,10.24,150.41,150.36,10.24]
[1727292840206,3.33166966,150.4,150.36,10.24]
[1727292840408,6.65636966,150.4,150.37,3.3251]
[1727292840606,3.33166966,150.4,150.37,10.24]
[1727292840796,10.24,150.42,150.37,10.24]
[1727292840999,3.3246,150.4,150.38,3.3249]
[1727292841908,6.59195191,150.41,150.38,3.3249]
[1727292843711,3.3248,150.39,150.36,3.3254]
[1727292844012,3.3248,150.39,150.36,13.5654]
[1727292844419,3.3248,150.39,150.37,3.3252]
[1727292846723,3.3247,150.4,150.38,3.325]
[1727292847216,10.24,150.42,150.37,10.24]
[1727292847519,10.24,150.41,150.34,1.3909]
[1727292847717,10.24,150.41,150.36,10.24]
[1727292848219,3.34686469,150.41,150.38,10.24]
[1727292848519,10.24,150.43,150.38,10.24]
[1727292848719,3.3245,150.41,150.38,13.5649]
[1727292849720,3.3243,150.42,150.39,3.3247]
[1727292849919,3.3243,150.42,150.39,13.5647]
[1727292850615,3.27998729,150.43,150.41,10.24]
[1727292850819,10.24,150.46,150.41,10.24]
[1727292851215,3.3238,150.44,150.41,10.24]
[1727292851618,10.24,150.45,150.41,10.24]
[1727292851815,3.324,150.43,150.4,13.5645]
[1727292859936,3.324,150.43,150.4,3.3245]
[1727292860132,10.24,150.44,150.34,1.3909]
[1727292860334,10.24,150.41,150.34,1.3909]
[1727292860638,3.3247,150.4,150.35,10.24]
[1727292860939,3.3247,150.4,150.37,3.3251]
[1727292861245,3.36128087,150.46,150.38,10.24]
[1727292861537,10.24,150.43,150.4,3.3244]
[1727292861742,3.3702638,150.42,150.4,3.3244]
[1727292861938,3.3243,150.42,150.39,10.24]
[1727292862145,10.24,150.43,150.39,13.5647]
[1727292862346,10.24,150.43,150.39,3.3247]
[1727292862545,10.24,150.43,150.38,10.24]
[1727292862546,3.3244,150.41,150.38,10.24]
[1727292862745,3.3244,150.41,150.38,13.5649]
[1727292863246,3.3244,150.41,150.38,3.3249]
[1727292864146,3.3244,150.41,150.39,3.3248]
[1727292864345,1.2771,150.48,150.4,10.24]
[1727292864532,10.24,150.46,150.4,10.24]
[1727292864737,3.29407521,150.46,150.42,10.24]
[1727292864937,3.3236,150.45,150.42,10.24]
[1727292865243,3.30039654,150.44,150.42,10.24]
[1727292865849,3.30039654,150.44,150.42,13.5641]
[1727292866150,3.30039654,150.44,150.42,10.24]
[1727292866448,3.3233,150.46,150.42,10.24]
[1727292866944,3.3235,150.45,150.42,13.5641]
[1727292868344,6.64409131,150.46,150.42,13.5641]
[1727292868552,10.24,150.48,150.42,13.5641]
[1727292868845,3.3224,150.5,150.46,10.24]
[1727292869149,6.64642048,150.5,150.46,10.24]
[1727292869353,3.3224,150.5,150.46,13.5631]
[1727292869557,3.3222,150.51,150.46,10.24]
[1727292869742,6.6418,150.57,150.37,4.67329545]
[1727292869743,6.6395,150.62,150.49,10.24]
[1727292869941,10.24,150.54,150.49,10.24]
[1727292870247,13.63752544,150.54,150.49,10.24]
[1727292870850,3.3218,150.53,150.49,13.5625]
[1727292871242,13.63752544,150.54,150.49,10.24]
[1727292871450,3.39752544,150.54,150.5,13.5623]
[1727292871643,10.24,150.56,150.5,13.5623]
[1727292871845,13.58098011,150.56,150.5,13.5623]
[1727292872151,16.90228011,150.56,150.51,3.3221]
[1727292872450,3.34098011,150.56,150.54,10.24]
[1727292872654,3.3203,150.6,150.54,10.24]
[1727292872848,3.3203,150.6,150.56,10.24]
[1727292874857,10.24,150.57,150.52,12.9229]
[1727292875041,3.37376726,150.56,150.52,12.9229]
[1727292875754,1.2621,150.65,150.54,10.24]
[1727292875953,10.24,150.62,150.57,10.24]
[1727292876757,10.24,150.61,150.57,10.24]
[1727292876959,10.24,150.59,150.52,2.6829]
[1727292877154,3.3207,150.58,150.53,13.5616]
[1727292877754,3.3209,150.57,150.53,10.24]
[1727292877943,10.24,150.55,150.52,1.2928]
[1727292878149,10.24,150.56,150.52,1.2928]
[1727292878653,13.52803083,150.56,150.52,1.2928]
[1727292878853,3.28803083,150.56,150.52,1.2928]
[1727292879053,13.561,150.57,150.52,4.6146]
[1727292879257,3.33255798,150.56,150.52,4.6146]
[1727292879960,10.24,150.62,150.55,10.24]
[1727292880162,10.24,150.59,150.54,10.24]
[1727292880357,10.24,150.57,150.53,11.543]
[1727292880555,13.49401405,150.57,150.53,11.543]
[1727292881164,10.24,150.59,150.54,10.24]
[1727292881350,11.58124378,150.62,150.57,10.24]
[1727292881661,21.82124378,150.62,150.57,10.24]
[1727292881863,10.24,150.62,150.57,10.24]
[1727292882052,3.3201,150.61,150.58,10.24]
[1727292884164,3.3202,150.6,150.56,10.24]
[1727292884363,3.3202,150.6,150.54,15.95]
[1727292884663,3.3202,150.6,150.56,3.321]
[1727292885048,15.95,150.64,150.54,15.95]
[1727292885255,15.95,150.62,150.54,15.95]
[1727292885555,3.3203,150.6,150.55,3.3212]
[1727292887666,15.95,150.62,150.53,3.3215]
[1727292887859,15.95,150.6,150.53,3.3215]
[1727292888054,15.95,150.62,150.52,82.70912256]
[1727292888363,3.3205,150.59,150.55,3.3213]
[1727292888761,3.3203,150.6,150.56,3.321]
[1727292890561,3.3205,150.59,150.54,15.95]
[1727292890866,15.95,150.64,150.54,15.95]
[1727292891065,3.3203,150.6,150.56,3.3209]
[1727292892151,3.3204,150.59,150.56,3.3209]
[1727292893263,1.2621,150.65,150.56,15.95]
[1727292893665,1.2621,150.65,150.57,1.2747]
[1727292894064,3.3201,150.61,150.57,4.5955]
[1727292894769,3.3202,150.6,150.57,4.5955]
[1727292895166,15.95,150.63,150.57,1.2747]
[1727292895554,3.3204,150.59,150.57,1.2747]
[1727292896178,3.3203,150.6,150.57,1.2747]
[1727292897672,3.3203,150.6,150.57,4.5955]
[1727292899863,3.32,150.61,150.57,4.5955]
[1727292900272,15.95,150.65,150.57,4.5955]
[1727292900468,15.95,150.65,150.57,1.2747]
[1727292900966,3.3201,150.61,150.57,4.5954]
[1727292902469,3.3201,150.61,150.58,1.29]
[1727292903063,3.3202,150.6,150.58,1.29]
[1727292903263,15.95,150.65,150.58,1.29]
[1727292904377,3.3202,150.6,150.58,1.29]
[1727292905567,3.32,150.61,150.58,1.29]
[1727292906268,3.32,150.61,150.58,11.5]
[1727292906662,3.32,150.61,150.58,14.8206]
[1727292907371,3.32,150.61,150.58,1.29]
[1727292908474,3.3199,150.62,150.59,10.21]
[1727292908663,10.21,150.65,150.6,10.21]
[1727292908863,3.3194,150.64,150.6,10.21]
[1727292909270,3.3194,150.64,150.58,1.29]
[1727292909465,3.3194,150.64,150.61,10.21]
[1727292910765,10.21,150.66,150.59,1.3899]
[1727292910766,10.21,150.66,150.6,10.21]
[1727292911067,10.21,150.64,150.59,1.3899]
[1727292911378,3.3196,150.63,150.59,4.7103]
[1727292911567,10.21,150.63,150.58,11.5]
[1727292911773,10.21,150.63,150.59,3.3204]
[1727292912370,10.21,150.64,150.59,3.3204]
[1727292912765,3.3199,150.62,150.59,3.3204]
[1727292913272,6.70582154,150.61,150.58,14.8205]
[1727292914177,3.3202,150.6,150.58,11.5]
[1727292915177,3.3202,150.6,150.58,14.8205]
[1727292915984,3.3204,150.59,150.57,1.2747]
[1727292916484,3.3204,150.59,150.57,4.5955]
[1727292916685,3.3204,150.59,150.57,14.8055]
[1727292917778,3.3203,150.6,150.58,3.3205]
[1727292918584,3.3203,150.6,150.57,14.8054]
[1727292919984,3.3204,150.59,150.57,14.8054]
[1727292920283,13.53724252,150.6,150.56,10.21]
[1727292920484,3.321,150.57,150.54,10.21]
[1727292920787,3.321,150.57,150.54,13.5313]
[1727292920989,3.321,150.57,150.54,10.21]
[1727292921381,3.321,150.57,150.55,3.3213]
[1727292922887,6.6378,150.66,150.55,13.5313]
[1727292923091,10.21,150.62,150.58,10.21]
[1727292923286,3.24827219,150.61,150.58,10.21]
[1727292923494,6.56837219,150.61,150.58,13.5305]
[1727292923983,3.3202,150.6,150.58,13.5305]
[1727292924887,3.24827219,150.61,150.58,10.21]
[1727292925787,6.56827219,150.61,150.58,13.5305]
[1727292926388,16.77827219,150.61,150.57,13.5307]
[1727292927096,3.3203,150.6,150.57,13.5307]
[1727292927284,13.45827219,150.61,150.53,4.0683]
[1727292927285,10.21,150.59,150.55,3.3211]
[1727292927484,13.5305,150.59,150.54,10.21]
[1727292927680,10.21,150.57,150.53,2.7649]
[1727292927881,10.21,150.54,150.52,65.46632256]
[1727292928083,10.21,150.53,150.52,65.46632256]
[1727292928583,13.55773884,150.53,150.52,65.46632256]
[1727292928782,10.21,150.53,150.52,65.46632256]
[1727292929393,3.3217,150.53,150.52,65.46632256]
[1727292929586,10.21,150.53,150.51,79.74]
[1727292929896,10.21,150.53,150.47,2.7022]
[1727292930091,10.21,150.49,150.47,2.7022]
[1727292930284,15.95,150.52,150.47,2.7022]
[1727292930480,15.95,150.54,150.47,2.7022]
[1727292930991,6.6398,150.62,150.47,2.7022]
[1727292930992,15.95,150.57,150.47,2.7022]
[1727292931186,19.21662989,150.57,150.47,2.7022]
[1727292931588,15.95,150.55,150.47,2.7022]
[1727292931996,3.3218,150.53,150.48,3.3228]
[1727292932291,3.27991572,150.52,150.48,3.3228]
[1727292933094,6.60181572,150.52,150.48,3.3228]
[1727292933302,3.3219,150.52,150.48,3.3228]
[1727292933488,19.26283125,150.52,150.47,6.0252]
[1727292933688,19.26283125,150.52,150.47,2.7022]
[1727292934003,19.26283125,150.52,150.47,1.3428]
[1727292934199,3.3225,150.5,150.47,1.3428]
[1727292935098,3.3225,150.5,150.47,4.6657]
[1727292935597,3.31283125,150.52,150.47,1.3428]
[1727292935797,15.95,150.54,150.47,1.3428]
[1727292936195,15.95,150.57,150.47,1.3428]
[1727292936498,15.95,150.57,150.5,3.3223]
[1727292936999,3.3216,150.54,150.5,3.3223]
[1727292938902,3.3217,150.53,150.5,3.3223]
[1727292940705,3.3217,150.53,150.49,3.3225]
[1727292940895,3.3219,150.52,150.49,3.3225]
[1727292942801,15.95,150.52,150.47,1.3428]
[1727292943296,3.3223,150.51,150.48,3.3228]
[1727292943797,19.272,150.52,150.49,3.3226]
[1727292944297,19.272,150.52,150.47,1.3428]
[1727292944298,15.95,150.54,150.47,1.3428]
[1727292944801,3.3219,150.52,150.49,3.3224]
[1727292945397,15.95,150.54,150.47,1.3428]
[1727292945592,17.2806,150.56,150.47,1.3428]
[1727292946202,3.3217,150.53,150.5,3.3223]
[1727292952097,3.3217,150.53,150.49,3.3225]
[1727292952404,15.95,150.5,150.44,1.3507]
[1727292952604,15.95,150.5,150.43,70.11737359]
[1727292952906,15.95,150.48,150.43,70.11737359]
[1727292953207,3.3231,150.47,150.43,70.11737359]
[1727292953503,15.95,150.48,150.44,3.3237]
[1727292953706,3.296875,150.47,150.43,66.79357359]
[1727292954004,3.296875,150.47,150.44,3.3237]
[1727292955700,6.619875,150.47,150.43,70.11737359]
[1727292956006,3.296875,150.47,150.43,70.11737359]
[1727292956195,6.619975,150.47,150.43,70.11737359]
[1727292956401,6.619975,150.47,150.44,3.3237]
[1727292956799,3.296875,150.47,150.43,66.79357359]
[1727292957098,3.3229,150.48,150.44,3.3237]
[1727292957297,3.32635015,150.47,150.44,3.3237]
[1727292957498,3.3232,150.47,150.44,3.3237]
[1727292957699,6.59634445,150.47,150.44,3.3237]
[1727292957901,3.27314445,150.47,150.43,70.11747359]
[1727292958097,3.3235,150.45,150.43,65.49337359]
[1727292958708,3.28378558,150.46,150.43,68.81727359]
[1727292959005,3.3233,150.46,150.43,68.81727359]
[1727292959206,6.62138459,150.46,150.43,68.81727359]
[1727292960708,6.62138459,150.46,150.44,3.3237]
[1727292961405,3.3235,150.45,150.43,68.81727359]
[1727292962413,6.58811566,150.46,150.43,68.81727359]
[1727292963318,15.95,150.5,150.43,65.49337359]
[1727292963503,15.95,150.48,150.43,65.49337359]
[1727292963813,19.19742268,150.48,150.43,65.49337359]
[1727292964019,3.3237,150.44,150.43,65.49337359]
[1727292964212,3.3237,150.44,150.41,4.7097]
[1727292964213,15.95,150.46,150.41,1.3854]
[1727292964909,3.24742268,150.48,150.41,1.3854]
[1727292965103,15.95,150.5,150.41,17.3354]
[1727292967116,3.3231,150.47,150.44,3.3236]
[1727292967613,3.31969878,150.48,150.41,1.3854]
[1727292967819,3.3233,150.46,150.41,1.3854]
[1727292968014,6.65430611,150.46,150.41,1.3854]
[1727292968819,3.3232,150.47,150.41,1.3854]
[1727292969008,3.3232,150.47,150.41,17.3354]
[1727292969218,15.95,150.51,150.41,17.3354]
[1727292969418,15.95,150.53,150.43,15.95]
[1727292969613,15.95,150.54,150.45,15.95]
[1727292969809,15.95,150.54,150.46,1.2682]
[1727292970319,3.3221,150.52,150.46,1.2682]
[1727292970618,3.3221,150.52,150.47,1.2643]
[1727292970919,15.95,150.52,150.47,1.2643]
[1727292972416,3.3223,150.51,150.47,4.5872]
[1727292974321,3.3221,150.52,150.47,1.2643]
[1727292974912,3.3221,150.52,150.48,3.3227]
[1727292975324,3.3222,150.51,150.48,3.3227]
[1727292976121,3.322,150.52,150.48,3.3227]
[1727292977910,1.3306,150.56,150.46,1.2682]
[1727292978107,15.95,150.51,150.46,1.2682]
[1727292978307,3.3227,150.49,150.46,4.5914]
[1727292978518,6.64073906,150.49,150.46,4.5914]
[1727292980211,3.31803906,150.49,150.43,1.3807]
[1727292980415,15.95,150.49,150.43,1.3807]
[1727292980613,3.3233,150.47,150.43,4.7045]
[1727292980821,15.95,150.48,150.43,4.7045]
[1727292981022,3.35960183,150.47,150.43,1.3807]
[1727292981226,3.3233,150.46,150.44,3.3237]
[1727292984128,3.3236,150.45,150.43,4.7045]
[1727292984318,3.35960183,150.47,150.43,1.3807]
[1727292984519,15.95,150.48,150.43,1.3807]
[1727292984916,3.3236,150.45,150.43,4.7046]
[1727292985121,19.20052454,150.48,150.42,1.3285]
[1727292985519,15.95,150.46,150.41,65.50573455]
[1727292986223,3.324,150.43,150.41,65.50573455]
[1727292986828,3.324,150.43,150.41,68.83013455]
[1727292992433,3.3238,150.44,150.41,68.83013455]
[1727292994424,10.22,150.43,150.41,68.83013455]
[1727292994932,10.22,150.42,150.41,65.50573455]
[1727292995634,13.5441,150.42,150.41,65.50573455]
[1727292995841,10.22,150.42,150.41,65.50573455]
[1727292997641,3.324,150.43,150.41,65.50573455]
[1727292997937,13.544,150.43,150.41,68.83013455]
[1727292999437,10.22,150.42,150.38,1.3127]
[1727292999639,10.22,150.4,150.38,1.3127]
[1727293000835,10.22,150.39,150.38,1.3127]
[1727293001142,10.22,150.39,150.37,1.3034]
[1727293002031,13.5449,150.39,150.37,1.3034]
[1727293002635,3.325,150.38,150.37,1.3034]
[1727293002944,10.22,150.39,150.37,1.3034]
[1727293003942,13.5449,150.39,150.37,1.3034]
[1727293004342,3.325,150.38,150.37,1.3034]
[1727293005746,13.545,150.38,150.33,1.3321]
[1727293005936,3.32357637,150.41,150.3,10.22]
[1727293006244,10.22,150.35,150.3,10.22]
[1727293007147,10.22,150.35,150.28,6.6545]
[1727293007148,13.59881006,150.36,150.34,3.3259]
[1727293008340,13.59881006,150.36,150.35,3.3257]
[1727293010246,3.3249,150.39,150.31,10.22]
[1727293010450,10.22,150.38,150.33,10.22]
[1727293010641,10.22,150.38,150.33,12.9214]
[1727293010942,13.5451,150.38,150.35,3.3255]
[1727293011443,10.22,150.37,150.35,3.3255]
[1727293015046,10.22,150.36,150.34,3.3259]
[1727293015247,4.58355899,150.43,150.34,3.3259]
[1727293015438,10.22,150.35,150.34,3.3259]
[1727293015643,13.5808412,150.35,150.34,3.3259]
[1727293016047,13.5808412,150.35,150.33,2.7014]
[1727293016048,10.22,150.36,150.35,3.3256]
[1727293018445,10.22,150.36,150.33,2.7014]
[1727293018647,11.23155899,150.43,150.33,2.7014]
[1727293018648,10.22,150.35,150.33,2.7014]
[1727293019748,10.22,150.35,150.34,3.3258]
[1727293020948,13.50397444,150.35,150.33,2.7014]
[1727293021143,10.22,150.34,150.28,10.22]
[1727293021342,13.546,150.34,150.32,3.3263]
[1727293021953,16.95442539,150.34,150.32,3.3263]
[1727293022340,13.62842539,150.34,150.32,3.3263]
[1727293022653,10.22,150.35,150.31,10.22]
[1727293023045,10.22,150.35,150.32,2.7592]
[1727293023247,3.26821364,150.35,150.34,3.3259]
[1727293023446,10.22,150.37,150.32,12.9792]
[1727293023842,13.5453,150.37,150.32,12.9792]
[1727293024353,10.22,150.35,150.33,3.326]
[1727293024550,13.48954489,150.34,150.32,2.7592]
[1727293024745,10.22,150.34,150.32,2.7592]
[1727293025052,10.22,150.34,150.33,3.3261]
[1727293025553,13.63098169,150.34,150.33,3.3261]
[1727293028059,11.23145899,150.43,150.32,12.9792]
[1727293028250,10.22,150.37,150.32,12.9792]
[1727293028958,13.5454,150.37,150.34,3.3257]
[1727293032759,13.5455,150.36,150.32,2.7592]
[1727293032954,10.22,150.36,150.33,3.326]
[1727293033464,13.5456,150.36,150.33,3.326]
[1727293033761,3.24758735,150.35,150.33,3.326]
[1727293034350,16.79328735,150.35,150.33,3.326]
[1727293034554,16.79328735,150.35,150.32,2.7592]
[1727293034855,13.46758735,150.35,150.32,2.7592]
[1727293035461,13.46758735,150.35,150.33,3.326]
[1727293039154,16.79328735,150.35,150.33,3.326]
[1727293052173,11.23145899,150.43,150.32,2.7592]
[1727293052473,10.22,150.37,150.32,2.7592]
[1727293052874,13.26781601,150.41,150.32,2.7592]
[1727293053092,13.26781601,150.42,150.36,10.22]
[1727293053369,3.3244,150.41,150.38,3.3249]
[1727293053570,13.5444,150.41,150.38,3.3249]
[1727293054475,10.22,150.41,150.4,3.3246]
[1727293054866,10.22,150.41,150.37,2.6162]
[1727293055274,10.22,150.39,150.37,2.6162]
[1727293055773,10.22,150.39,150.38,3.325]
[1727293056367,3.3248,150.39,150.37,2.6162]
[1727293056566,13.5448,150.39,150.37,2.6162]
[1727293057275,10.22,150.39,150.37,3.3251]
[1727293057480,10.22,150.39,150.33,12.9262]
[1727293058374,10.22,150.38,150.33,12.9262]
[1727293058575,10.22,150.35,150.33,2.7062]
[1727293058971,10.22,150.35,150.34,3.3258]
[1727293060176,10.22,150.37,150.35,3.3256]
[1727293060571,3.3252,150.38,150.35,3.3256]
[1727293060883,13.5452,150.38,150.33,12.9262]
[1727293061071,10.22,150.38,150.33,12.9262]
[1727293061272,10.22,150.4,150.35,10.22]
[1727293061482,10.22,150.39,150.34,10.22]
[1727293061879,10.22,150.39,150.36,3.3255]
[1727293061880,10.22,150.38,150.36,3.3255]
[1727293062078,10.22,150.38,150.33,12.9262]
[1727293062275,13.5454,150.37,150.33,2.7062]
[1727293062479,13.5454,150.37,150.33,1.3613]
[1727293062976,13.5451,150.38,150.35,3.3255]
[1727293063776,16.86412488,150.38,150.35,3.3255]
[1727293063978,16.86412488,150.38,150.36,3.3254]
[1727293067589,10.22,150.38,150.36,3.3254]
[1727293067782,13.61711859,150.39,150.34,10.22]
[1727293067988,10.22,150.38,150.33,12.9591]
[1727293068694,3.37149377,150.37,150.33,12.9591]
[1727293068890,3.37149377,150.37,150.36,3.3254]